{"text_format":"2","workbook":"xlsx","n_sheets":21,"sheets":["Főösszesítő","Munkanem összesítő","2.Bontás, építőanyagok újraha","15.Zsaluzás és állványozás","19.Költségtérítések","21.Irtás, föld- és sziklamunka","33.Falazás és egyéb kőműves mu","34.Fém- és könnyű épületszerke","36.Vakolás és rabicolás","39.Szárazépítés","42.Hideg-, meleg- és homlokzat","44.Fa- és műanyag szerkezet el","47.Felületképzés","49.Árnyékolók beépítése","54.Közmű csővezetékek és szere","71.Elektromos energiaellátás,","72.Épületautomatika, -felügyel","81.Épületgépészeti csővezeték","82.Épületgépészeti szerelvénye","83.Szellőztető berendezések","84.VRF berendezések"],"not_rendered":{"charts":0,"images":0,"macros":0,"external_links":0,"defined_names":0,"comments":0,"pivot_tables":0},"unopened":[],"bounds":{"document_bytes":16777216,"sheet_cells":100000,"run_cost":"one","rows_first":2000,"rows_last":500,"rows_between":2000,"halvings":0,"cell_chars":16384,"cell_head_chars":4096},"cells_cut":0,"cells_raw":0,"read":"whole","date_system":"1900"}

{"sheet":"Főösszesítő","index":0,"n_rows":15,"n_cols":4,"rows_kept":15,"cut":false,"hidden":false,"merged":[[14,2,14,3],[0,0,0,3],[2,0,2,3],[5,2,5,3],[8,2,8,3],[9,2,9,3],[6,2,6,3],[7,2,7,3]]}
["Kitöltötte:"]
[]
["Költségvetés főösszesítő"]
["Megnevezés",null,"Anyagköltség","Díjköltség"]
["1 Építmény közvetlen költségei",null,{"$f":"'Munkanem összesítő'!C21","v":0},{"$f":"'Munkanem összesítő'!D21","v":0}]
["2 Tartalékkeret vetítési alap",null,{"$f":"ROUND(C5+D5,0)","v":0}]
["3 Tartalékkeret",0.1,{"$f":"ROUND(C6*B7,0)","v":0}]
["4.1 ÁFA vetítési alap",null,{"$f":"ROUND(C6+C7,0)","v":0}]
["4.2 ÁFA",0.27,{"$f":"ROUND(C8*B9,0)","v":0}]
["5. A munka ára",null,{"$f":"ROUND(C8+C9,0)","v":0}]
[]
[]
[]
[]
[null,null,"cégszerű aláírás"]

{"sheet":"Munkanem összesítő","index":1,"n_rows":21,"n_cols":4,"rows_kept":21,"cut":false,"hidden":false,"merged":[]}
["Ssz.","Megnevezés","Anyagköltség","Díjköltség"]
["2","Bontás, építőanyagok újrahasznosítása",{"$f":"'2.Bontás, építőanyagok újraha'!H4","v":0},{"$f":"'2.Bontás, építőanyagok újraha'!I4","v":0}]
["15","Zsaluzás és állványozás",{"$f":"'15.Zsaluzás és állványozás'!H4","v":0},{"$f":"'15.Zsaluzás és állványozás'!I4","v":0}]
["19","Költségtérítések",{"$f":"'19.Költségtérítések'!H6","v":0},{"$f":"'19.Költségtérítések'!I6","v":0}]
["21","Irtás, föld- és sziklamunka",{"$f":"'21.Irtás, föld- és sziklamunka'!H3","v":0},{"$f":"'21.Irtás, föld- és sziklamunka'!I3","v":0}]
["33","Falazás és egyéb kőműves munkák",{"$f":"'33.Falazás és egyéb kőműves mu'!H5","v":0},{"$f":"'33.Falazás és egyéb kőműves mu'!I5","v":0}]
["34","Fém- és könnyű épületszerkezetek szerelése",{"$f":"'34.Fém- és könnyű épületszerke'!H3","v":0},{"$f":"'34.Fém- és könnyű épületszerke'!I3","v":0}]
["36","Vakolás és rabicolás",{"$f":"'36.Vakolás és rabicolás'!H6","v":0},{"$f":"'36.Vakolás és rabicolás'!I6","v":0}]
["39","Szárazépítés",{"$f":"'39.Szárazépítés'!H3","v":0},{"$f":"'39.Szárazépítés'!I3","v":0}]
["42","Hideg-, meleg- és homlokzatburkolatok készítése, aljzat előkészítése",{"$f":"'42.Hideg-, meleg- és homlokzat'!H19","v":0},{"$f":"'42.Hideg-, meleg- és homlokzat'!I19","v":0}]
["44","Fa- és műanyag szerkezet elhelyezése",{"$f":"'44.Fa- és műanyag szerkezet el'!H11","v":0},{"$f":"'44.Fa- és műanyag szerkezet el'!I11","v":0}]
["47","Felületképzés",{"$f":"'47.Felületképzés'!H15","v":0},{"$f":"'47.Felületképzés'!I15","v":0}]
["49","Árnyékolók beépítése",{"$f":"'49.Árnyékolók beépítése'!H4","v":0},{"$f":"'49.Árnyékolók beépítése'!I4","v":0}]
["54","Közmű csővezetékek és szerelvények szerelése",{"$f":"'54.Közmű csővezetékek és szere'!H3","v":0},{"$f":"'54.Közmű csővezetékek és szere'!I3","v":0}]
["71","Elektromos energiaellátás, villanyszerelés",{"$f":"'71.Elektromos energiaellátás,'!H33","v":0},{"$f":"'71.Elektromos energiaellátás,'!I33","v":0}]
["72","Épületautomatika, -felügyelet (gyengeáram)",{"$f":"'72.Épületautomatika, -felügyel'!H7","v":0},{"$f":"'72.Épületautomatika, -felügyel'!I7","v":0}]
["81","Épületgépészeti csővezeték szerelése",{"$f":"'81.Épületgépészeti csővezeték'!H10","v":0},{"$f":"'81.Épületgépészeti csővezeték'!I10","v":0}]
["82","Épületgépészeti szerelvények és berendezések szerelése",{"$f":"'82.Épületgépészeti szerelvénye'!H38","v":0},{"$f":"'82.Épületgépészeti szerelvénye'!I38","v":0}]
["83","Szellőztető berendezések",{"$f":"'83.Szellőztető berendezések'!H4","v":0},{"$f":"'83.Szellőztető berendezések'!I4","v":0}]
["84","VRF berendezések",{"$f":"'84.VRF berendezések'!H33","v":0},{"$f":"'84.VRF berendezések'!I33","v":0}]
[null,"Összesen (HUF)",{"$f":"ROUND(SUM(C2:C20),0)","v":0},{"$f":"ROUND(SUM(D2:D20),0)","v":0}]

{"sheet":"2.Bontás, építőanyagok újraha","index":2,"n_rows":4,"n_cols":9,"rows_kept":4,"cut":false,"hidden":false,"merged":[]}
["Ssz.","Tételszám","Tétel szövege","Menny.","Egység","Anyag egységár","Díj egységre","Anyag összesen","Díj összesen"]
[1,"02-030-7.2","Vegyes építési- bontási törmelék berakása konténerbe gépi erővel, kiegészítő kézi munkával",15,"m³",null,null,{"$f":"ROUND(F2*D2,0)","v":0},{"$f":"ROUND(G2*D2,0)","v":0}]
[2,"02-030-5.1","Bontott fa hulladék felrakása szállítóeszközre gépi erővel, kiegészítő kézi munkával",1,"m³",null,null,{"$f":"ROUND(F3*D3,0)","v":0},{"$f":"ROUND(G3*D3,0)","v":0}]
[null,null,"Munkanem összesen (HUF)",{"$nulls":4},{"$f":"ROUND(SUM(H2:H3),0)","v":0},{"$f":"ROUND(SUM(I2:I3),0)","v":0}]

{"sheet":"15.Zsaluzás és állványozás","index":3,"n_rows":4,"n_cols":9,"rows_kept":4,"cut":false,"hidden":false,"merged":[]}
["Ssz.","Tételszám","Tétel szövege","Menny.","Egység","Anyag egységár","Díj egységre","Anyag összesen","Díj összesen"]
[1,"15-017-2.2","Törmelékcsúszda készítése beömlőnyílásokkal ütésálló műanyagból (1,1 m-es elemekből)",10,"m",null,null,{"$f":"ROUND(F2*D2,0)","v":0},{"$f":"ROUND(G2*D2,0)","v":0}]
[2,"15-016-1.1-0023126","Guruló állvány, 2,50x0,75 m-es járólappal, 2,00 kN/m² terhelhetőséggel, 4,6 m járólapmagasság (típus: 741202), KRAUSE guruló állvány 2,50x0,75 m-es járólappal, 2,00 kN/m2 terhelhetőséggel, 4,6 m járólapmagasság (típus: 741202)",2,"db",null,null,{"$f":"ROUND(F3*D3,0)","v":0},{"$f":"ROUND(G3*D3,0)","v":0}]
[null,null,"Munkanem összesen (HUF)",{"$nulls":4},{"$f":"ROUND(SUM(H2:H3),0)","v":0},{"$f":"ROUND(SUM(I2:I3),0)","v":0}]

{"sheet":"19.Költségtérítések","index":4,"n_rows":6,"n_cols":9,"rows_kept":6,"cut":false,"hidden":false,"merged":[]}
["Ssz.","Tételszám","Tétel szövege","Menny.","Egység","Anyag egységár","Díj egységre","Anyag összesen","Díj összesen"]
[1,"19-090-1","Építmények átadás előtti utolsó takarítása (pipere)",1,"db",null,null,{"$f":"ROUND(F2*D2,0)","v":0},{"$f":"ROUND(G2*D2,0)","v":0}]
[2,"19-010-1.11.3","Általános teendők, megvalósulás szakaszában, üzembehelyezés és szerelési nyilatkozat készítése",1,"db",null,null,{"$f":"ROUND(F3*D3,0)","v":0},{"$f":"ROUND(G3*D3,0)","v":0}]
[3,"19-010-1.21.2","Általános teendők, befejezés szakaszában, megvalósulási tervdokumentáció elkészítése",1,"db",null,null,{"$f":"ROUND(F4*D4,0)","v":0},{"$f":"ROUND(G4*D4,0)","v":0}]
[4,"19-010-1.21.4","Általános teendők, befejezés szakaszában, kezelő személyzet oktatása",1,"db",null,null,{"$f":"ROUND(F5*D5,0)","v":0},{"$f":"ROUND(G5*D5,0)","v":0}]
[null,null,"Munkanem összesen (HUF)",{"$nulls":4},{"$f":"ROUND(SUM(H2:H5),0)","v":0},{"$f":"ROUND(SUM(I2:I5),0)","v":0}]

{"sheet":"21.Irtás, föld- és sziklamunka","index":5,"n_rows":3,"n_cols":9,"rows_kept":3,"cut":false,"hidden":false,"merged":[]}
["Ssz.","Tételszám","Tétel szövege","Menny.","Egység","Anyag egységár","Díj egységre","Anyag összesen","Díj összesen"]
[1,"21-011-11.3","Építési törmelék konténeres elszállítása, lerakása, lerakóhelyi díjjal, 5,0 m³-es konténerbe",3,"db",null,null,{"$f":"ROUND(F2*D2,0)","v":0},{"$f":"ROUND(G2*D2,0)","v":0}]
[null,null,"Munkanem összesen (HUF)",{"$nulls":4},{"$f":"ROUND(SUM(H2:H2),0)","v":0},{"$f":"ROUND(SUM(I2:I2),0)","v":0}]

{"sheet":"33.Falazás és egyéb kőműves mu","index":6,"n_rows":5,"n_cols":9,"rows_kept":5,"cut":false,"hidden":false,"merged":[]}
["Ssz.","Tételszám","Tétel szövege","Menny.","Egység","Anyag egységár","Díj egységre","Anyag összesen","Díj összesen"]
[1,"33-000-21.1.1.1.1.1","Válaszfal bontása, égetett agyag-kerámia termékekből, erősítő pillérrel vagy erősítő pillér nélkül falazva, kisméretű, mészhomok, magasított vagy nagyméretű téglából, 15 cm vastagságig, falazó, cementes mészhabarcsból falazva",46,"m²",null,null,{"$f":"ROUND(F2*D2,0)","v":0},{"$f":"ROUND(G2*D2,0)","v":0}]
[2,"33-063-3.2.3","Horonyvésés, téglafalban, 16,01-24,00 cm² keresztmetszet között",20,"m",null,null,{"$f":"ROUND(F3*D3,0)","v":0},{"$f":"ROUND(G3*D3,0)","v":0}]
[3,"33-063-31.1","Mérési jelölés, kirajzolás horonyvéséshez",20,"m",null,null,{"$f":"ROUND(F4*D4,0)","v":0},{"$f":"ROUND(G4*D4,0)","v":0}]
[null,null,"Munkanem összesen (HUF)",{"$nulls":4},{"$f":"ROUND(SUM(H2:H4),0)","v":0},{"$f":"ROUND(SUM(I2:I4),0)","v":0}]

{"sheet":"34.Fém- és könnyű épületszerke","index":7,"n_rows":3,"n_cols":9,"rows_kept":3,"cut":false,"hidden":false,"merged":[]}
["Ssz.","Tételszám","Tétel szövege","Menny.","Egység","Anyag egységár","Díj egységre","Anyag összesen","Díj összesen"]
[1,"34-000-1.5","Lámpatest tartó mennyezeti acél vázszerkezet átalakítása az új helyiségkiosztásnak megfelelően (bontással, visszaépítéssel, rögzítésekkel, felületképzéssel), kompletten.",1,"db",null,null,{"$f":"ROUND(F2*D2,0)","v":0},{"$f":"ROUND(G2*D2,0)","v":0}]
[null,null,"Munkanem összesen (HUF)",{"$nulls":4},{"$f":"ROUND(SUM(H2:H2),0)","v":0},{"$f":"ROUND(SUM(I2:I2),0)","v":0}]

{"sheet":"36.Vakolás és rabicolás","index":8,"n_rows":6,"n_cols":9,"rows_kept":6,"cut":false,"hidden":false,"merged":[]}
["Ssz.","Tételszám","Tétel szövege","Menny.","Egység","Anyag egységár","Díj egységre","Anyag összesen","Díj összesen"]
[1,"36-000-1.1.1","Vakolat leverése oldalfalról vagy mennyezetről 1,5 cm vastagságig falazó, cementes mészhabarcs",32,"m²",null,null,{"$f":"ROUND(F2*D2,0)","v":0},{"$f":"ROUND(G2*D2,0)","v":0}]
[2,"36-001-1.1.1-0550040","Sima oldalfalvakolat készítése kézi felhordással, belső, vakoló cementes mészhabarccsal, téglafelületen, 1,5 cm vastagságban, Hvb8-mc, beltéri, vakoló cementes mészhabarcs mészpéppel Hs60-cm, simító, meszes cementhabarcs mészpéppel",102,"m²",null,null,{"$f":"ROUND(F3*D3,0)","v":0},{"$f":"ROUND(G3*D3,0)","v":0}]
[3,"36-001-21.11.7-0550030","Mennyezetvakolat készítése sima kivitelben, kézi felhordással, belső, vakoló cementes mészhabarccsal, nádpallón vagy fagyapot lemezen, rabichálóval, 1 cm vastagságban, Hvb4-mc, beltéri, vakoló, cementes mészhabarcs mészpéppel Hvb8-mc, beltéri, vakoló cementes mészhabarcs mészpéppel",4,"m²",null,null,{"$f":"ROUND(F4*D4,0)","v":0},{"$f":"ROUND(G4*D4,0)","v":0}]
[4,"36-002-12-0211288","Tapadóhíd képzése vízzel higított koncentrátummal, KEMIKÁL tapadóhíd",32,"m²",null,null,{"$f":"ROUND(F5*D5,0)","v":0},{"$f":"ROUND(G5*D5,0)","v":0}]
[null,null,"Munkanem összesen (HUF)",{"$nulls":4},{"$f":"ROUND(SUM(H2:H5),0)","v":0},{"$f":"ROUND(SUM(I2:I5),0)","v":0}]

{"sheet":"39.Szárazépítés","index":9,"n_rows":3,"n_cols":9,"rows_kept":3,"cut":false,"hidden":false,"merged":[]}
["Ssz.","Tételszám","Tétel szövege","Menny.","Egység","Anyag egységár","Díj egységre","Anyag összesen","Díj összesen"]
[1,"39-001-3.3.3-0120012","CW fém vázszerkezetre szerelt válaszfal 2 x 2 rtg. normál, 12,5 mm vtg. gipszkarton borítással, hőszigeteléssel, csavarfejek és illesztések glettelve (Q2), egyszeres, sűrített, (30 vagy 31,3 cm bordatávolság) CW 100 tartóvázzal, RIGIPS normál építőlemez RB 12,5 mm, ásványi szálas hőszigetelés",23,"m²",null,null,{"$f":"ROUND(F2*D2,0)","v":0},{"$f":"ROUND(G2*D2,0)","v":0}]
[null,null,"Munkanem összesen (HUF)",{"$nulls":4},{"$f":"ROUND(SUM(H2:H2),0)","v":0},{"$f":"ROUND(SUM(I2:I2),0)","v":0}]

{"sheet":"42.Hideg-, meleg- és homlokzat","index":10,"n_rows":19,"n_cols":9,"rows_kept":19,"cut":false,"hidden":false,"merged":[]}
["Ssz.","Tételszám","Tétel szövege","Menny.","Egység","Anyag egységár","Díj egységre","Anyag összesen","Díj összesen"]
[1,"42-000-2.2","Lapburkolatok bontása, fal-, pillér- és oszlopburkolat, bármely méretű mozaik, kőagyag és csempe",50.6,"m²",null,null,{"$f":"ROUND(F2*D2,0)","v":0},{"$f":"ROUND(G2*D2,0)","v":0}]
[2,"42-000-3.4","Fa-, hézagmentes műanyag- és szőnyegburkolatok bontása, gumilemez vagy PVC burkolat tekercsből, lapokból vagy lépcsőn betétként",110.1,"m²",null,null,0,0]
[3,"42-011-2.1.3.1","Padlóburkolat hordozószerkezetének felületelőkészítése beltérben, meglévő hidegburkolaton felületelőkészítő alapozó és tapadóhíd felhordása egy rétegben",121.8,"m²",null,null,0,0]
[4,"42-011-2.1.3.4.1-0314522","Padlóburkolat hordozószerkezetének felületelőkészítése beltérben, meglévő hidegburkolaton önterülő felületkiegyenlítés készítése 5 mm átlagos rétegvastagságban, MUREXIN Lewell SP 330 Speciál aljzatkiegyenlítő",121.8,"m²",null,null,0,0]
[5,"42-090-6.5.2-0110701","Fa-, hézagmentes és műanyagburkolatok javítása, lécparketta csukás megszüntetett válaszfal mentén, Csaphornyos parketta, 300/350/400x45/55x22 mm, tölgy, Standard, Mátraparkett",12,"m",null,null,0,0]
[6,"42-090-6.4.5.1-0110701","Fa-, hézagmentes és műanyagburkolatok javítása, parketta burkolatok javítása, egyes elemek kivésése és pótlása, parketta burkolat javítása 1,0 m²-ig, vakpadlóra szegezett, normál parketta burkolat, Csaphornyos parketta, 300/350/400x45/55x22 mm, tölgy, Standard, Mátraparkett",5,"m²",null,null,0,0]
[7,"42-042-6.1.2.1-0311142","Kisegítő- és részmunkák, parketta csiszolása és lakkozása, nagy igénybevételre, oldószeres lakkal, MUREXIN LV 45 Univerzális alapozó PU lakkhoz MUREXIN PU 95 2K lakk, selyemmatt A+B komponens",186.5,"m²",null,null,0,0]
[8,"42-000-3.2.1","Fa-, hézagmentes műanyag- és szőnyegburkolatok bontása, csaphornyos vagy mozaikparketta, 22 mm vastag vakpadlóra szegezve",2,"m²",null,null,0,0]
[9,"42-041-4.1.1","Meglévő egyenetlen aljzat nagy szintkülönbségeinek kiegyenlítése, szabványos cementesztrich és betonpadló felület előkészítése, 2 cm vastagságban",2,"m²",null,null,0,0]
[10,"42-090-6.7.3","Fa-, hézagmentes és műanyagburkolatok javítása, régi vagy javított parketta burkolat felújítása, régi székléc bontás, új anyagból pótlás",100,"m",null,null,0,0]
[11,"42-011-1.1.1.1-0313027","Fal-, pillér és oszlopburkolat hordozószerkezetének felületelőkészítése beltérben, tégla, beton és vakolt alapfelületen, felületelőkészítő alapozó és tapadóhíd felhordása egy rétegben, MAPEI Primer G műgyanta bázisú, diszperziós alapozó, Csz: 020110",50.6,"m²",null,null,0,0]
[12,"42-011-1.1.1.2-0415538","Fal-, pillér és oszlopburkolat hordozószerkezetének felületelőkészítése beltérben, tégla, beton és vakolt alapfelületen, kenhető víz- és páraszigetelés felhordása egy rétegben,  hajlaterősítő szalag elhelyezésével, Baumit Baumacol Proof folyékony fólia, Cikkszám: 951757",73.45,"m²",null,null,0,0]
[13,"42-012-1.1.3.1.1.2-0313111","Fal-, pillér-, oszlop- és lábazatburkolat készítése beltérben, kenhető szigetelésre, mázas kerámiával, kötésben vagy hálósan, 3-5 mm vtg. ragasztóba rakva, 1-10 mm fugaszélességgel, 10x10 - 20x20 cm közötti lapmérettel, MAPEI Adesilex P9 C2TE cementkötésű ragasztóhabarcs, szürke, Csz: 006125 MAPEI Ultracolor Plus fugázóhabarcs, fehér, Csz: 6010028A",50.6,"m²",null,null,0,0]
[14,"42-022-1.1.3.2.1.1-0313902","Padlóburkolat készítése, beltérben, kenhető szigetelésre, gres, kőporcelán lappal, kötésben vagy hálósan, 3-5 mm vtg. ragasztóba rakva, 1-10 mm fugaszélességgel, 20x20 - 40x40 cm közötti lapmérettel, MAPEI Ultralite S1 Flex Zero C2TE S1 egykomponensű, cementkötésű ragasztóhabarcs, Csz: 1196515 MAPEI Kerapoxy IEG kétkomponensű epoxigyanta fugázó, cementszürke, Csz: 5U11310",23,"m²",null,null,0,0]
[15,"42-022-1.1.4.2.1.1-0313020","Padlóburkolat készítése, beltérben, meglévő hidegburkolatra, gres, kőporcelán lappal, kötésben vagy hálósan, 3-5 mm vtg. ragasztóba rakva, 1-10 mm fugaszélességgel, 20x20 - 40x40 cm közötti lapmérettel, MAPEI Keraflex Easy S1 Zero C2E cementkötésű ragasztóhabarcs, szürke, Csz: 1198225 MAPEI Kerapoxy IEG kétkomponensű epoxigyanta fugázó, cementszürke, Csz: 5U11310",110.1,"m²",null,null,0,0]
[16,"42-022-2.1.2.1.1-0313020","Lábazatburkolat készítése, beltérben, gres, kőporcelán lappal, egyenes, egysoros kivitelben, 3-5 mm ragasztóba rakva, 1-10 mm fugaszélességgel, 10 cm magasságig, 20x20 - 40×40 cm közötti lapmérettel, MAPEI Keraflex Easy S1 Zero C2E cementkötésű ragasztóhabarcs, szürke, Csz: 1198225 MAPEI Kerapoxy IEG kétkomponensű epoxigyanta fugázó, cementszürke, Csz: 5U11310",120,"m",null,null,0,0]
[17,"42-071-7.2.2-0151681","Kiegészítő dilatációs profil elhelyezése tartós, mozgásokat felvevő fugákhoz, kombinált kemény és lágy műanyagból, csempe- és padlólap burkolatoknál, előre beépítetten vagy utólagosan beépítve, sárgaréz-műanyag, alumínium- műanyag, nemesacél- műanyag kombinációban, 5-43 mm fugaszélességgel, 2,5-30 mm vastagsági mérettel, különböző színekkel, vékony ágyazat esetén, Schlüter-DILEX-EKSN 2,5m, dilatáció, élvédő funkcióval H=8mm, szürke Rendelési szám: EKSN80G",2.35,"m",null,null,0,0]
[null,null,"Munkanem összesen (HUF)",{"$nulls":4},{"$f":"ROUND(SUM(H2:H18),0)","v":0},{"$f":"ROUND(SUM(I2:I18),0)","v":0}]

{"sheet":"44.Fa- és műanyag szerkezet el","index":11,"n_rows":11,"n_cols":9,"rows_kept":11,"cut":false,"hidden":false,"merged":[]}
["Ssz.","Tételszám","Tétel szövege","Menny.","Egység","Anyag egységár","Díj egységre","Anyag összesen","Díj összesen"]
[1,"44-000-9","Fa tanári dobogó elbontása",36,"m²",null,null,{"$f":"ROUND(F2*D2,0)","v":0},{"$f":"ROUND(G2*D2,0)","v":0}]
[2,"44-001-4-0180058","Kiegészítő tartozékok elhelyezése ajtóhoz, küszöb, vaktok, bármilyen méretű nyílászáróhoz, Küszöb tölgyfából 1400x150 mm, 24 mm vtg., küszöbsín horony marással",5,"db",null,null,0,0]
[3,"44-000-3","Beépített faszekrény (konyhaszekrény) bontása",1,"m²",null,null,0,0]
[4,"44-000-1.4","Fa vagy műanyag nyílászáró szerkezetek bontása, ajtó, ablak vagy kapu, 6,01 m² felett. Tábla szerkezetek elbontása, 1 visszaépítése új helyre.",2,"db",null,null,0,0]
[5,"44-090-6","Meglévő ajtólap rövidebbé vétele szárnyanként",15,"db",null,null,0,0]
[6,"44-090-1.2","Meglévő mindenféle nyílászáró szerkezet javítása  faanyag- és/vagy vasalatpótlással, 1,21-2 m² között, vasalatpótlással. Szükség szerint zárszerkezetek cseréjével, vízvezők cseréjével, gittelés pótlásával, faanyagpótlással, pászítással, törött üveg cseréjével.",24,"db",null,null,0,0]
[7,"44-090-1.3","Meglévő mindenféle nyílászáró szerkezet kisebb javítása  faanyag- és/vagy vasalatpótlással, 2 m² felett, vasalatpótlással. 14-1001 közötti ajtó átalakítása: mindkét oldalra nyílás biztosítása sarokpánt cserékkel és a szükséges tok és ajtólap átalakításokkal, zár felszerelésével, tűzkulcs doboz elhelyezésével mindkét oldalon.",1,"db",null,null,0,0]
[8,"44-030-11.3-0122105","Válaszfal rendszer moduláris elemei, pissoire szeméremfal 145x40 cm méretben, 15 cm-es lábakkal, K-FAL Compakt WC kabin pissoire szeméremfal 145x40 cm méretben, 12 mm vastag, nagy igénybevételű, magas páratartalmú helyiségekhez",2,"db",null,null,0,0]
[9,"44-000-5","Fa védő deszkalábazat bontása. Székütköző falvédők elbontása.",1,"db",null,null,0,0]
[null,null,"Munkanem összesen (HUF)",{"$nulls":4},{"$f":"ROUND(SUM(H2:H10),0)","v":0},{"$f":"ROUND(SUM(I2:I10),0)","v":0}]

{"sheet":"47.Felületképzés","index":12,"n_rows":15,"n_cols":9,"rows_kept":15,"cut":false,"hidden":false,"merged":[]}
["Ssz.","Tételszám","Tétel szövege","Menny.","Egység","Anyag egységár","Díj egységre","Anyag összesen","Díj összesen"]
[1,"47-000-7.1.2.2","Fafelületek mázolásának előkészítő és részmunkái; régi olajmázolás eltávolítása fa nyílászáró szerkezetről, lekaparással (raskettázás), tagolt felületről",122,"m²",null,null,{"$f":"ROUND(F2*D2,0)","v":0},{"$f":"ROUND(G2*D2,0)","v":0}]
[2,"47-000-7.2.2.2-0137001","Fafelületek mázolásának előkészítő és részmunkái; fafelület beeresztő alapozása egy rétegben, oldószeres alapozóval, tagolt felületen, Caparol Capalac Holz-Impragniergrund speciális favédő alapozó a fa szerkezetet roncsoló- és elszínező gombák ellen",122,"m²",null,null,0,0]
[3,"47-000-7.3.2-0214115","Fafelületek mázolásának előkészítő és részmunkái; simító tapaszolás fafelületen, egyszeri és minden további, tagolt felületen, Remmers Epoxi-Holzverfestigung epoxi bázisú faanyag szilárdító, 3161",122,"m²",null,null,0,0]
[4,"47-031-1.1.1.2-0130701","Belső fafelületek alapmázolása, műgyantabázisú (alkid) oldószertartalmú alapozóval, tagolt felületen, Trinát univerzális alapozó, fehér 100, EAN: 5995061117055",244.98,"m²",null,null,0,0]
[5,"47-031-1.3.1.2-0130701","Belső fafelületek fedőmázolása, műgyantabázisú (alkid) oldószertartalmú alapozóval, tagolt felületen, Trinát univerzális alapozó, fehér 100, EAN: 5995061117055",244.98,"m²",null,null,0,0]
[6,"47-000-4.1.6","Acélfelületek mázolásának előkészítő és részmunkái; régi olajfesték eltávolítása kaparással (raskettázás), fűtőtestről, 80 NÁ feletti csőről",50,"m²",null,null,0,0]
[7,"47-000-4.1.5","Acélfelületek mázolásának előkészítő és részmunkái; régi olajfesték eltávolítása kaparással (raskettázás), cső és regisztercső felületről (80 NÁ-ig), függesztő és tartóvasakról, mosdó állványzatról",100,"m",null,null,0,0]
[8,"47-071-31.1.2-0162152","Acélfelületek átvonó festése (szórásos technológiával), műgyanta kötőanyagú, oldószeres festékkel, két rétegben, Tikkurila Temalac FD 20 egykomponensű, félmatt, gyorsan száradó, korróziógátló, egyrétegű alkid bevonat (ipari korrózióvédelem), javasolt egyrétegű bevonatként acél felületeken, acél vázszerkezetek, különböző típusú gépek és berendezések festésére",50,"m²",null,null,0,0]
[9,"47-021-31.4.1-0130361","Acélfelületek átvonó festése cső és regisztercső felületén (NÁ 80-ig), függesztőn és tartóvason, sormosdó állványzaton műgyanta kötőanyagú, oldószeres festékkel, Trinát zománc, magasfényű, fehér 100, EAN: 5995061119035",100,"m",null,null,0,0]
[10,"47-000-1.3.1.1","Belső festéseknél felület előkészítése, részmunkák; vizes diszperziós falfesték lekaparása, bármilyen padozatú helységben, tagolatlan felületen",1484.12,"m²",null,null,0,0]
[11,"47-000-1.21.4.1.1-0320614","Belső festéseknél felület előkészítése, részmunkák; glettelés diszperziós kötőanyagú glettel, vakolt felületen, tagolatlan felületen, NIVELIN felhasználásra kész, beltéri diszperziós glett, kézi és gépi felhasználásra (0-3 mm), krémfehér, Cikkszám: 348NDG25B",1484.12,"m²",null,null,0,0]
[12,"47-010-3.1.1-0419506","Enyhén porózus, nedvszívó, gyengén homokosodó falfelületek felületmegerősítő mélyalapozása, vizes-diszperziós mélyalapozóval, tagolatlan felületen, POLI-FARBE Inntaler diszperziós mélyalapozó",1484.12,"m²",null,null,{"$f":"ROUND(F13*D13,0)","v":0},{"$f":"ROUND(G13*D13,0)","v":0}]
[13,"47-011-15.1.1.1-0160011","Diszperziós festés (két rétegben) műanyag bázisú vizes-diszperziós  fehér vagy gyárilag színezett festékkel, új vagy régi lekapart, előkészített alapfelületen, vakolaton, két rétegben, tagolatlan sima felületen, POLI-FARBE Inntaler diszperziós beltéri, fehér falfesték",1484.12,"m²",null,null,0,0]
[null,null,"Munkanem összesen (HUF)",{"$nulls":4},{"$f":"ROUND(SUM(H2:H14),0)","v":0},{"$f":"ROUND(SUM(I2:I14),0)","v":0}]

{"sheet":"49.Árnyékolók beépítése","index":13,"n_rows":4,"n_cols":9,"rows_kept":4,"cut":false,"hidden":false,"merged":[]}
["Ssz.","Tételszám","Tétel szövege","Menny.","Egység","Anyag egységár","Díj egységre","Anyag összesen","Díj összesen"]
[1,"49-900-1.2","Redőnyök javítása. Gurtnik cseréi. Hőszigetelő lemez elhelyezése a redőnyszekrények ajtóira belülről. Egyéb javítások, a redőnyök működőképessé tétele. Rések kitöltése fehér, festhető akril tömítővel.",13,"db",null,null,{"$f":"ROUND(F2*D2,0)","v":0},{"$f":"ROUND(G2*D2,0)","v":0}]
[2,"k","Függőfolyosón üvegezett előtető részleges elbontása/átalakítása telepítendő légtechnikai berendezés fölött.",1,"tétel",null,null,{"$f":"ROUND(F3*D3,0)","v":0},{"$f":"ROUND(G3*D3,0)","v":0}]
[null,null,"Munkanem összesen (HUF)",{"$nulls":4},{"$f":"ROUND(SUM(H2:H3),0)","v":0},{"$f":"ROUND(SUM(I2:I3),0)","v":0}]

{"sheet":"54.Közmű csővezetékek és szere","index":14,"n_rows":3,"n_cols":9,"rows_kept":3,"cut":false,"hidden":false,"merged":[]}
["Ssz.","Tételszám","Tétel szövege","Menny.","Egység","Anyag egységár","Díj egységre","Anyag összesen","Díj összesen"]
[1,"54-006-2.2-0130604","Menetes csatlakozású elzáró és szabályozó szerelvények elhelyezése, DN 20, MOFÉM AHA gömbcsap 3/4\" bb. menettel, névleges méret 20 mm, sárgaréz, natúr, 16 bar, Csz: 113-0018-00",2,"db",null,null,{"$f":"ROUND(F2*D2,0)","v":0},{"$f":"ROUND(G2*D2,0)","v":0}]
[null,null,"Munkanem összesen (HUF)",{"$nulls":4},{"$f":"ROUND(SUM(H2:H2),0)","v":0},{"$f":"ROUND(SUM(I2:I2),0)","v":0}]

{"sheet":"71.Elektromos energiaellátás,","index":15,"n_rows":33,"n_cols":9,"rows_kept":33,"cut":false,"hidden":false,"merged":[]}
["Ssz.","Tételszám","Tétel szövege","Menny.","Egység","Anyag egységár","Díj egységre","Anyag összesen","Díj összesen"]
[1,"71-000-1.7.2.2.1","Vezetékek, kábelek és szerelvények bontása; kábel leszerelése, tartószerkezetről, rögzítés bontásával, tömeghatár: 1,00 kg/m-ig",100,"m",null,null,{"$f":"ROUND(F2*D2,0)","v":0},{"$f":"ROUND(G2*D2,0)","v":0}]
[2,"71-000-1.11","Vezetékek, kábelek és szerelvények bontása; kapcsolók, csatlakozó aljzatok, falifoglalatok, csengők, reduktorok, erős- vagy gyengeáramú nyomók, termosztátok, lépcsőházi automaták, jelzők leszerelése",14,"db",null,null,0,0]
[3,"71-000-1.13","Vezetékek, kábelek és szerelvények bontása; mindennemű fényforrás és lámpatest leszerelése",37,"db",null,null,0,0]
[4,"71-000-1.5.1","Vezetékek, kábelek és szerelvények bontása; vörösréz vagy alumínium vezeték leszerelése védőcsőből kihúzva, 10 mm2-ig",36.4,"m",null,null,0,0]
[5,"71-001-1.4.1-0661780","Merev simafalú vagy gégecső, műanyag védőcső elhelyezése, elágazó dobozokkal, gégecső kemény műanyagból, elelőre elkészített tartószerkezetre, horonyba, üregbe szerelve, Névleges méret: 9-28,5 mm, GEWISS halogénmentes ICTA gégecső, önvisszaálló, behúzószállal, 25-ös, 750N ellenállóság, halogénmentes, önkioltó polipropilén, Csz.:DX20125R",100,"m",null,null,0,0]
[6,"71-002-1.1-0210002","Szigetelt vezeték elhelyezése védőcsőbe húzva vagy vezetékcsatornába fektetve, rézvezetővel, leágazó kötésekkel, szigetelés ellenállás méréssel, a szerelvényekhez csatlakozó vezetékvégek bekötése nélkül, keresztmetszet: 0,5-2,5 mm², H07V-U 450/750V 1x1,5 mm², tömör rézvezetővel (MCu)",400,"m",null,null,0,0]
[7,"71-002-1.1-0210003","Szigetelt vezeték elhelyezése védőcsőbe húzva vagy vezetékcsatornába fektetve, rézvezetővel, leágazó kötésekkel, szigetelés ellenállás méréssel, a szerelvényekhez csatlakozó vezetékvégek bekötése nélkül, keresztmetszet: 0,5-2,5 mm², H07V-U 450/750V 1x2,5 mm², tömör rézvezetővel (MCu)",400,"m",null,null,0,0]
[8,"71-002-20.2.1-0221561","Kábelszerű vezeték elhelyezése védőcsőbe húzva vagy vezetékcsatornába fektetve, 2-5 erű rézvezetővel, leágazó kötésekkel, szigetelés ellenállás méréssel, a szerelvényekhez csatlakozó vezetékvégek bekötése nélkül, 4-5 erű, gyors vezetékösszekötővel, keresztmetszet: 2,5 mm2-ig, NYM 300/500V 5x1,5 mm², tömör rézvezetővel (MBCu)",235,"m",null,null,0,0]
[9,"71-002-40-0224015","Speciális kábelek elhelyezése kézi erővel, kábelárokba vagy kábelcsatornába, BELDEN 7931A struktúrált hálózati kábel cat6  U/UTP AWG23",4850,"m",null,null,0,0]
[10,"71-002-20.1.1-0221522","Kábelszerű vezeték elhelyezése védőcsőbe húzva vagy vezetékcsatornába fektetve, 2-5 erű rézvezetővel, leágazó kötésekkel, szigetelés ellenállás méréssel, a szerelvényekhez csatlakozó vezetékvégek bekötése nélkül, 2-3 erű, gyors vezetékösszekötővel, keresztmetszet: 2,5 mm2-ig, NYM 300/500V 3x2,5 mm², tömör rézvezetővel (MBCu)",181,"m",null,null,0,0]
[11,"71-001-24.2.4-0533833","Műanyag vezetékcsatorna, padlószegélycsatorna elhelyezése előre elkészített tartószerkezetre szerelve, idomdarabokkal, szélesség:  100 mm felett, LEGRAND DLP szerelvényezhető csatorna 150x50 mm, 130 mm széles fedéllel, fehér, (Kat.szám:10432 + 010524)",138,"m",null,null,0,0]
[12,"71-001-24.1.2-0130053","Műanyag vezetékcsatorna, padlószegélycsatorna elhelyezése előre elkészített tartószerkezetre szerelve, idomdarabok nélkül, szélesség: 40 mm felett, Beltéri könnyű kivitelű műanyag kábelcsatorna, sima, fehér 50x100 mm, Kód: MCSN 50*100F",64,"m",null,null,0,0]
[13,"71-001-24.1.1-0130021","Műanyag vezetékcsatorna, padlószegélycsatorna elhelyezése előre elkészített tartószerkezetre szerelve, idomdarabok nélkül, szélesség: 40 mm-ig, Beltéri könnyű kivitelű műanyag kábelcsatorna, sima, fehér 25x25 mm, Kód: MCSN 25*25F",76,"m",null,null,0,0]
[14,"K-tétel","Szinti folyosó alelosztó szekrényének cseréje kombinált védőkapcsolók elhelyezésével (kismegszakító+ áram-védőkapcsoló) váltakozó- és pulzálóegyenáramú kioldásra, gyorskioldással (6-40 ms), 6/10 kA zárlati szilárdsággal, 2/4 pólusú, Schneider Electric Resi9 áramvédős kismegszakító, AC osztály, 1P-N, C, 10A, 30mA, Csz.: R9D31210, T2 túlfeszvédelemmel világítási és dugalj áramkörök részére",1,"db",null,null,0,0]
[15,"71-011-6.1.2.1.1-0220104","LED-es fényforrások, általános világítás céljára, fehér fényű, vonalszerű kivitelben, hagyományos kialakítású (retrofit), LED fénycső, PacKerS-PEL-B-150-23 230VAC/23W LED-es fénycső PCB alumínium házban 1500 mm, világítási szög 180 fok 5,5 méter magasságig javasolt össz 2300Lm, Cikkszám: LED cső AC150023",68,"db",null,null,0,0]
[16,"71-010-12.15.5-0115241","(Akkumulátoros vészvilágítás)  Tartalék világítási lámpatestek elhelyezése, tartalékvilágítási eszközök, inverterek, LEGRAND Inverter, 1 óra, 6-36W 230V, 50-60Hz (Kat.szám:061840)",15,"db",null,null,0,0]
[17,"71-010-1.1.2.1.3","Felületre szerelt lámpatest elhelyezése előre elkészített tartószerkezetre, nyitott, fénycsöves kivitelben, T8, T12 fénycsöves, szabályozható elektronikával szerelt (A1 energia osztályú), aszimmetrikus tükrös, Lámpatestek ára nélkül!",54,"db",null,null,0,0]
[18,"71-005-1.1.1.5-0545320","Komplett világítási  és telekommunikációs szerelvények, Fali kapcsolók elhelyezése, süllyesztve, 6-16A alternatív (váltó) kapcsolók, LEGRAND Niloé kettős váltókapcsoló, körömmel, fehér (Kat.szám:764502)",16,"db",null,null,0,0]
[19,"71-005-1.1.1.4-0545314","Komplett világítási  és telekommunikációs szerelvények, Fali kapcsolók elhelyezése, süllyesztve, 6-16A kétáramkörös (csillár) kapcsolók, LEGRAND Niloé csillárkapcsoló, körömmel, fehér (Kat.szám:764506)",6,"db",null,null,0,0]
[20,"71-005-1.48.1.3","Komplett világítási  és telekommunikációs szerelvények, Előszerelt dugaszolóaljzat elhelyezése, mellvédcsatornába, hármas, Legrand Mosaic",73,"db",null,null,0,0]
[21,"71-005-1.31.2-0592467","Komplett világítási  és telekommunikációs szerelvények, Telefon és PC csatlakozóaljzat, USB töltő aljzat, hangszóró-csatlakozó elhelyezése (egyes/kettős), PC, USB, hangszóró, LEGRAND Mosaic 2xRJ45 LCS2 Cat6 FTP fehér",91,"db",null,null,0,0]
[22,"71-005-2.53.8-0682026","Összeépíthető világítási  és telekommunikációs szerelvények elemei; Kapcsoló/nyomó/csatlakozó betét elhelyezése fedéllel (keret nélkül), telefon, TV, PC, audio, ethernet, USB töltő, Schrack - VISIO S HDMI csatlakozó betét, Cikkszám: EV104050--",6,"db",null,null,0,0]
[23,"71-005-2.82.4-0230556","Összeépíthető világítási  és telekommunikációs szerelvények elemei; Fedlap elhelyezése telekommunikációs csatlakozóaljzathoz, audio, LEGRAND Céliane HDMI burkolat, titán (Kat.szám:068516)",6,"db",null,null,0,0]
[24,"71-005-2.99-0230245","Összeépíthető világítási  és telekommunikációs szerelvények elemei; Kiegészítők elhelyezése, LEGRAND HDMI kábel csatlakozóval szerelt 10 méter (Kat.szám:051720)",3,"db",null,null,0,0]
[25,"72-011-11.1.3.3","Video megfigyelő rendszerek, kamerák felszerelése meglévő kiállásra,  kábelezés nélkül, üzempróbával, IP hálózati kamera, IP megapixel kamera",6,"db",null,null,0,0]
[26,"72-041-6.1.2.2.3-0223392","Strukturált adatátviteli kábel elhelyezése rézvezetővel, kábeltálcára vagy kábelcsatornába fektetve, szerelt patch kábel, 250-450 MHz frekvenciatartomány Cat.6 S/FTP, LEGRAND patch kábel RJ45-RJ45 Cat6 árnyékolt (S/FTP) PVC 2 méter kék d: 6,2mm AWG27 LCS3 (Kat.szám: 051753)",120,"db",null,null,0,0]
[27,"72-041-6.1.2.2.3-0223393","Strukturált adatátviteli kábel elhelyezése rézvezetővel, kábeltálcára vagy kábelcsatornába fektetve, szerelt patch kábel, 250-450 MHz frekvenciatartomány Cat.6 S/FTP, LEGRAND patch kábel RJ45-RJ45 Cat6 árnyékolt (S/FTP) PVC 3 méter kék d: 6,2mm AWG27 LCS3 (Kat.szám: 051754)",20,"db",null,null,0,0]
[28,"72-041-6.1.2.2.3-0114267","Strukturált adatátviteli kábel elhelyezése rézvezetővel, kábeltálcára vagy kábelcsatornába fektetve, szerelt patch kábel, 250-450 MHz frekvenciatartomány Cat.6 S/FTP, LEGRAND patch kábel RJ45-RJ45 Cat6 árnyékolt (S/FTP) PVC 5 méter kék d: 6,2mm AWG27 LCS3 (Kat.szám: 051755)",50,"db",null,null,0,0]
[29,"72-041-6.1.2.2.3-0697733","Strukturált adatátviteli kábel elhelyezése rézvezetővel, kábeltálcára vagy kábelcsatornába fektetve, szerelt patch kábel, 250-450 MHz frekvenciatartomány Cat.6 S/FTP, Schrack - patch kábel, RJ45, árnyékolt, Cat.6, PVC, kék, 10 m, Cikkszám: H6GLB10K0B",10,"db",null,null,0,0]
[30,"71-005-1.48.1.5","Komplett világítási  és telekommunikációs szerelvények, Előszerelt dugaszolóaljzat elhelyezése, mellvédcsatornába, hatos aljzat, \"D\" túlfeszültség védelemmel ellátva, 6 méter vezetékkel, \"P\" dugvillával ellátva.",36,"db",null,null,0,0]
[31,"K-tétel","Split klímák kültéri egységéhez leválasztó kapcsoló kiépítése",36,"db",null,null,0,0]
[null,null,"Munkanem összesen (HUF)",{"$nulls":4},{"$f":"ROUND(SUM(H2:H32),0)","v":0},{"$f":"ROUND(SUM(I2:I32),0)","v":0}]

{"sheet":"72.Épületautomatika, -felügyel","index":16,"n_rows":7,"n_cols":9,"rows_kept":7,"cut":false,"hidden":false,"merged":[]}
["Ssz.","Tételszám","Tétel szövege","Menny.","Egység","Anyag egységár","Díj egységre","Anyag összesen","Díj összesen"]
[1,"72-041-15.2-0162677","Patch panel elhelyezése előre kialakított rack szekrényben, 4-96 Port, RJ 45 Cat. 6 komplett, LEGRAND patch panel 19''-1U 24xRJ45 Cat6 árnyékolt (FTP) 6xRJ45 kazettás/LCS3 gyorscsatlakozós portok egyenes 250MHz 1Gigabit (Kat.szám: 033761)",1,"db",null,null,{"$f":"ROUND(F2*D2,0)","v":0},{"$f":"ROUND(G2*D2,0)","v":0}]
[2,"72-041-141.1.1","Kábelvég kifejtése blankolva, szétsodorva, 5-50 érpár db között, beltéri rézkábel",182,"db",null,null,{"$f":"ROUND(F3*D3,0)","v":0},{"$f":"ROUND(G3*D3,0)","v":0}]
[3,"72-041-142","Kábelvég bekötése rendezőbe réz kábelnél betűzőszerszámmal erenként elszámolva",182,"db",null,null,{"$f":"ROUND(F4*D4,0)","v":0},{"$f":"ROUND(G4*D4,0)","v":0}]
[4,"72-041-151.1","Veszteségmérés 2 végpont között műszerrel,  mérés eredményéről jegyzőkönyv készítése, rézkábel esetén",91,"db",null,null,{"$f":"ROUND(F5*D5,0)","v":0},{"$f":"ROUND(G5*D5,0)","v":0}]
[5,"72-041-152.1","Diagnosztikai vizsgálat végpontokra számolva,vizsgálat műszerrel, vizsgálat eredményéről jegyzőkönyv készítése, rézkábel esetén",91,"db",null,null,{"$f":"ROUND(F6*D6,0)","v":0},{"$f":"ROUND(G6*D6,0)","v":0}]
[null,null,"Munkanem összesen (HUF)",{"$nulls":4},{"$f":"ROUND(SUM(H2:H6),0)","v":0},{"$f":"ROUND(SUM(I2:I6),0)","v":0}]

{"sheet":"81.Épületgépészeti csővezeték","index":17,"n_rows":10,"n_cols":9,"rows_kept":10,"cut":false,"hidden":false,"merged":[]}
["Ssz.","Tételszám","Tétel szövege","Menny.","Egység","Anyag egységár","Díj egységre","Anyag összesen","Díj összesen"]
[1,"81-000-1.5.2","Csővezetékek bontása, ragasztott vagy gumigyűrűs tömítésű PVC csővezeték esetén, DN 65 - 100 között",8,"m",0,0,{"$f":"ROUND(F2*D2,0)","v":0},{"$f":"ROUND(G2*D2,0)","v":0}]
[2,"81-000-1.5.1","Csővezetékek bontása, ragasztott vagy gumigyűrűs tömítésű PVC csővezeték esetén, DN 25 - 50 között",3,"m",0,0,0,0]
[3,"81-000-1.6","Csővezetékek bontása, vízvezeték elzárás és nyitás, javítási munkák előtt és után",1,"db",0,0,0,0]
[4,"81-001-1.3.3.1.1.1.3-0329503","Ivóvíz vezeték, Ötrétegű cső szerelése, PE-Xc/Al/PE-HD anyagból, préshüvelyes kötéssel, cső elhelyezése csőidomok nélkül, szakaszos nyomáspróbával, falhoronyba vagy padlószerkezetbe szerelve (horonyvésés külön tételben), DN 20, WAVIN Tigris ötrétegű cső tekercsben, 25x2,50 mm, 10 bar, 95 C fok, FFC25",50,"m",0,0,0,0]
[5,"81-001-1.3.3.1.2.1.2-0329562","Ivóvíz vezeték, Ötrétegű cső szerelése, PE-Xc/Al/PE-HD anyagból, préshüvelyes kötéssel, csőidomok és szerelvények elhelyezése, egycsatlakozású csőidomok préselt kötéssel, DN 15, WAVIN Tigris K1 falikorong belső menettel, 20x1/2\", FTFB20",12,"db",0,0,0,0]
[6,"81-001-1.3.3.1.2.2.3-0335003","Ivóvíz vezeték, Ötrétegű cső szerelése, PE-Xc/Al/PE-HD anyagból, préshüvelyes kötéssel, csőidomok és szerelvények elhelyezése, kétcsatlakozású csőidomok préselt kötéssel, DN 20, WAVIN Tigris K5 könyök, 90°, 25 mm, TTK925",20,"db",0,0,0,0]
[7,"81-002-1.3.2.5-0373015","PP polipropilén lefolyóvezeték szerelése szakaszos tömörségi próbával, tokos csövekből földárokba, ajakos gumigyűrű tömítéssel, 2,00 m hosszú csövekből, csőidomok nélkül, DN 90-110, PIPELIFE MASTER 3 cső 110x2000mm, M3-110/2000",4,"m",0,0,0,0]
[8,"81-002-1.3.2.2-0373006","PP polipropilén lefolyóvezeték szerelése szakaszos tömörségi próbával, tokos csövekből földárokba, ajakos gumigyűrű tömítéssel, 2,00 m hosszú csövekből, csőidomok nélkül, DN 40, PIPELIFE MASTER 3 cső 40x2000mm, M3-40/2000",8,"m",0,0,0,0]
[null,null,"Munkanem összesen (HUF)",{"$nulls":4},{"$f":"ROUND(SUM(H2:H9),0)","v":0},{"$f":"ROUND(SUM(I2:I9),0)","v":0}]

{"sheet":"82.Épületgépészeti szerelvénye","index":18,"n_rows":38,"n_cols":9,"rows_kept":38,"cut":false,"hidden":false,"merged":[]}
["Ssz.","Tételszám","Tétel szövege","Menny.","Egység","Anyag egységár","Díj egységre","Anyag összesen","Díj összesen"]
[1,"82-000-3.1","Vízellátás berendezési tárgyak leszerelése, szelepek, bekötőcsövek, könyökök, zsírfogók stb.",10,"db",0,0,{"$f":"ROUND(F2*D2,0)","v":0},{"$f":"ROUND(G2*D2,0)","v":0}]
[2,"82-000-3.2","Vízellátás berendezési tárgyak leszerelése, falikutak, mosdók",2,"db",0,0,0,0]
[3,"82-000-3.4","Vízellátás berendezési tárgyak leszerelése, WC csésze tartozékokkal",3,"db",0,0,0,0]
[4,"82-000-3.5","Vízellátás berendezési tárgyak leszerelése, vizelde tartozékokkal",3,"db",0,0,0,0]
[5,"82-000-3.6","Vízellátás berendezési tárgyak leszerelése, öblítőtartály tartozékokkal",4,"db",0,0,0,0]
[6,"82-001-16.2.1-0116022","Fűtőtest szerelvény elhelyezése külső vagy belső menettel, illetve hollandival csatlakoztatva DN 15 radiátorszelep, HERZ AS-T típusú, egyenes kivitelű radiátorszelep, 1/2\", Csz: 1.6823.91",11,"db",0,0,0,0]
[7,"82-001-16.2.3-0116062","Fűtőtest szerelvény elhelyezése külső vagy belső menettel, illetve hollandival csatlakoztatva DN 15 visszatérő elzárószelep, HERZ RL-5 típusú, sarok kivitelű visszatérő elzáró- és szabályozó szelep, előbeállítási lehetőséggel, 1/2\", Csz: 1.3924.01",11,"db",0,0,0,0]
[8,"82-004-1.2-0353213","Elektromos melegvíztermelő (átfolyós vagy tárolós) berendezés elhelyezése, tartozékokkal, szerelvényekkel, vízoldali bekötéssel,elektromos bekötés nélkül, 20,01 - 80 liter között, HAJDU Z - 80 ErP zártrendszerű elektromos forróvíztároló, fali függőleges kivitelű, 80 literes tűzzománcozott acél tartállyal, aktív anódos védelemmel, kombinált biztonsági szeleppel, 1,8 kW elektromos teljesítmény, Csz.: 2111811115",1,"db",0,0,0,0]
[9,"82-009-5.1-0118004","Mosdó vagy mosómedence berendezés elhelyezése és bekötése, falra szerelhető porcelán kivitelben (komplett), B&K rögzítő elem porcelán mosdóhoz mozgáskorlátozottak részére, Cikkszám: TH401A",3,"db",0,0,0,0]
[10,"82-009-5.1-0314096","Mosdó vagy mosómedence berendezés elhelyezése és bekötése, falra szerelhető porcelán kivitelben (komplett), GROHE Bau Ceramic mosdókagyló 60, falra szerelhető, 1 csaplyukkal, túlfolyóval, 609 x 442 mm, szaniter kerámia, Cikkszám: 39421000",3,"db",0,0,0,0]
[11,"82-009-11.1.2.2-0314063","WC csésze elhelyezése és bekötése, sarokszelep, nyomógomb nélkül, porcelánból, hátsókifolyású, mélyöblítésű kivitelben, GROHE Bau Ceramic álló WC, mély öblítéses, perem nélküli, vízszintes kimenet, öblítési mennyiség 6/3 l, rögzítőkészlettel együtt, szaniter kerámia, Cikkszám: 39430000",3,"db",0,0,0,0]
[12,"82-009-12.1-0314122","WC-csésze kiegészítő szerelvényeinek elhelyezése, WC-ülőke, GROHE Bau Ceramic WC-ülőke, fedéllel, gyorskioldó funkció, levehető, Duroplast anyagból, rögzítőkészlettel együtt, rozsdamentes acél zsanérok, könnyű rögzítés felülről, súly teherbírás 150 kg, kompatibilis az össze Bau WC-kerámiával, Cikkszám: 39492000",3,"db",0,0,0,0]
[13,"82-009-12.2.2-0135123","WC-csésze kiegészítő szerelvényeinek elhelyezése, WC csatlakozó, hátsó kifolyású WC-hez, HL210.WE, PP WC-csatlakozó DN110, 0 - 90° -ig fokozat nélkül állítható, ajakos tömítés a kerámia fogadására, fehér",3,"db",0,0,0,0]
[14,"82-009-12.3-0118057","WC-csésze kiegészítő szerelvényeinek elhelyezése, WC öblítőcsövek, B&K öblítőcső falon kívül magasan szerelt WC-öblítőtartályhoz, D32 mm, fehér, Cikkszám: V815071",3,"db",0,0,0,0]
[15,"82-009-13.1-0118042","WC öblítőtartály felszerelése és bekötése, falsík elé szerelhető, műanyag, B&K MUREX falon kívüli pneumatikus WC-öblítőtartály, 6/9 literes, magasan szerelhető, fehér, öblítőcső nélkül, Cikkszám: V862901",3,"db",0,0,0,0]
[16,"82-009-16.3.1-0321412","Vizelde kiegészítő elemei, szerelőelem vizeldéhez (működtető elemmel), falsík előtti, GEBERIT Duofix szerelőelem vizeldéhez, Universal, 111.616.00.1",3,"db",0,0,0,0]
[17,"82-009-16.2.2-0337685","Vizelde kiegészítő elemei, öblítőszelep, szenzoros vagy infravezérlésű, GEBERIT Sigma10 automata vizelde vezérlés, infravörös, hálózati, fehér/fényes króm/fehér, Cikkszám: 116.025.KJ.1",3,"db",0,0,0,0]
[18,"82-009-16.5-0337795","Vizelde kiegészítő elemei, vizelde elválasztó falpanel, GEBERIT vizelde válaszfal, 40 cm x 10 cm x 70 cm, fehér kerámia, Cikkszám: 110000000",2,"db",0,0,0,0]
[19,"82-012-61.2.2","Fűtőtestek le- és visszaszerelése, festés előtt illetve festés után, acéllemez radiátor, 11-20 tag között",2,"db",0,0,0,0]
[20,"82-016-1.1.9-0220633","Piperetárgyak elhelyezése, egy-három helyen felerősítve, WC-kefe tartóval, B&K WC-kefe tartó, rozsdamentes acél, falra szerelhető, matt, méret: 82x400x89 mm, Cikkszám: MEDES1002CS",3,"db",0,0,0,0]
[21,"82-016-1.1.9-0220641","Piperetárgyak elhelyezése, egy-három helyen felerősítve, WC-kefe tartóval, B&K WC-kefetartó kefével, fali, krómozott réz, Cikkszám: BKH0112151",3,"db",0,0,0,0]
[22,"82-016-2.1-0220782","Adagoló (szappan, tusfürdő, fertőtlenítő, kézkrém, illatosító) és tartozékainak elhelyezése, falra szerelt kivitelben, B&K Losdi falra szerelhető folyékonyszappan adagoló, zárható, műanyag, 1 l, fehér, Cikkszám: BKH0010411",3,"db",0,0,0,0]
[23,"82-016-3.1-0220722","Papíradagolók elhelyezése falra szerelt kivitelben, B&K Losdi WC papír tartó nagy tekercshez, zárható, műanyag, fehér, Cikkszám: BKH0030511",3,"db",0,0,0,0]
[24,"82-016-4.3-0220684","Hulladékgyűjtő, szennyestartó elhelyezése padlóra helyezett kivitelben, B&K hulladékgyűjtő könnyen billenthető fedéllel, rozsdamentes acél, fényes, 16 l, Cikkszám: BKH0047341",2,"db",0,0,0,0]
[25,"82-016-6.2.1-0345501","Felirati táblák elhelyezése piktogramok, 100x100, 120x120, 125x125 vagy 230x125 mm, B&K piktogram - férfi mosdó 3, 100x100 mm, lézervágott, KO33 szálcsiszolt, Cikkszám: BK95001",1,"db",0,0,0,0]
[26,"82-016-6.2.1-0345502","Felirati táblák elhelyezése piktogramok, 100x100, 120x120, 125x125 vagy 230x125 mm, B&K piktogram - női mosdó 3, 100x100 mm, lézervágott, KO33 szálcsiszolt, Cikkszám: BK95002",1,"db",0,0,0,0]
[27,"82-009-17.1-0110161","Berendezési tárgyak szerelvényeinek felszerelése, sarokszelep szerelés, MOFÉM sárgaréz sarokszelep 1/2\"-1/2\" sárgaréz, krómozott, 10 bar, Csz: 163-0002-00",8,"db",0,0,0,0]
[28,"82-009-17.2-0130623","Berendezési tárgyak szerelvényeinek felszerelése, kombinált sarokszelep szerelés, MOFÉM kombinált sarokszelep 1/2\"-3/8\"-3/4\" csatlakozással, krómozott, Csz: 15.025.28.00",2,"db",0,0,0,0]
[29,"82-009-17.1-0110162","Berendezési tárgyak szerelvényeinek felszerelése, sarokszelep szerelés, MOFÉM sárgaréz sarokszelep 1/2\"-3/8\" sárgaréz, krómozott, 10 bar, Csz: 163-0006-00",2,"db",0,0,0,0]
[30,"82-009-1.1.1-0215021","Falikút, kiöntő vagy mosóvályú elhelyezése és bekötése, falikút, szifon (bűzelzáró) és csaptelep nélkül, acéllemezből-, rozsdamentes lemezből vagy öntöttvasból, Acéllemez falikút, kívül-belül fehér tűzzománcozott, rövid hátlapú",1,"db",0,0,0,0]
[31,"82-009-19.3.2-0318297","Csaptelepek és szerelvényeinek felszerelése, mosdócsaptelepek, álló illetve süllyesztett mosdócsaptelep, MOFÉM Junior egykaros mosdócsaptelep, 150mm kifolyócsővel, ECO kerámia vezérlőegység forrázás elleni védelemmel,  kód: 150-0050-00",3,"db",0,0,0,0]
[32,"82-009-21.1-0135301","Padló alatti, feletti illetve falba süllyeszthető bűzelzáró, padló alatti 1, 2, 3 ágú elhelyezése HL510NPr, Padlólefolyó DN40/50 vízszintes csatlakozóval, szigetelő karimával, \"Primus\" kiszáradás-védett vízbűzzárral, 123x123 mm műanyag rácstartóval, 115x115 mm nemesacél ráccsal, a csempézés idejére merevítő védőfedéllel. Terhelhetőség: 300kg",1,"db",0,0,0,0]
[33,"82-009-22.9.2-0325150","Egyéb kiegészítő vízszerelési berendezések, biztonsági szelep elhelyezése, DN 15, HERZ biztonsági szelep zárt rendszerű elektromos vízmelegítőhöz, 1/2\", Csz: UH13001",1,"db",0,0,0,0]
[34,"82-009-31.5-0337687","Vizes berendezési tárgyak bűzelzáróinak felszerelése, vizelde csészéhez, GEBERIT vizelde leszívószifon hátsó kifolyású, d=50mm, Alpin fehér, Cikkszám: 152.950.11.1",3,"db",0,0,0,0]
[35,"82-009-31.1.1-0135012","Vizes berendezési tárgyak bűzelzáróinak felszerelése, falikúthoz-mosogatóhoz DN 40-ig, HL126/50, Helytakarékos (hátfalra fektethető) konyhai szifon szerelési hiba kiküszöbölésére is, 6/4\" összekötő csővel, visszacsapó szelepes mosógép csatlakozóval, gömbcsuklóval, DN50 kimenettel",1,"db",0,0,0,0]
[36,"82-009-31.2-0130628","Vizes berendezési tárgyak bűzelzáróinak felszerelése, mosdóhoz, bidéhez, vízlágyítóhoz, MOFÉM búraszifon leeresztőszelep nélkül, állítható, Csz: 165-0027-04",3,"db",0,0,0,0]
[null,null,"Munkanem összesen (HUF)",{"$nulls":4},{"$f":"ROUND(SUM(H2:H37),0)","v":0},{"$f":"ROUND(SUM(I2:I37),0)","v":0}]

{"sheet":"83.Szellőztető berendezések","index":19,"n_rows":4,"n_cols":9,"rows_kept":4,"cut":false,"hidden":false,"merged":[]}
["Ssz.","Tételszám","Tétel szövege","Menny.","Egység","Anyag egységár","Díj egységre","Anyag összesen","Díj összesen"]
[1,"k tétel","Helios MiniVent M1/100 F ventilátor fali beépítése kompletten, kiegészítő elemekkel (rovarvédő rács, fali hüvely, esővédő lamella, átvezető csatorna szakasz, szerelőkeret…stb), komplett villamos bekötéssel (világítás kapcsolóról működtetve.",2,"db",0,0,{"$f":"ROUND(F2*D2,0)","v":0},{"$f":"ROUND(G2*D2,0)","v":0}]
[2,"k tétel","Faláttörés 30x30 cm méretig, téglafalban, 12,01-25 cm falvastagság között",2,"db",0,0,0,0]
[null,null,"Munkanem összesen (HUF)",{"$nulls":4},{"$f":"ROUND(SUM(H2:H3),0)","v":0},{"$f":"ROUND(SUM(I2:I3),0)","v":0}]

{"sheet":"84.VRF berendezések","index":20,"n_rows":33,"n_cols":9,"rows_kept":33,"cut":false,"hidden":false,"merged":[]}
["Ssz.","Tételszám","Tétel szövege","Menny.","Egység","Anyag egységár","Díj egységre","Anyag összesen","Díj összesen"]
[1,"k tétel","Toshiba Mini SMMSe, inverteres, 3 fázisú, VRF kültéri egység. VRV fűtő-hűtő levegő hőszivattyús kültéri egység helyszínre\nszállítva, daruzási munkákkal gyári rezéscsillapító alátátetek\nbeépítésével, beüzemeléssel, átadási és használatbavételi\nengedélyekhez szükséges összes dokumentáció készítésével\negyütt kompletten.\nTOSHIBA MCY-MHP1006HS8-E",1,"db",0,0,{"$f":"D2*F2","v":0},{"$f":"D2*G2","v":0}]
[2,"k tétel","Toshiba VRF oldalfali, beltéri egység infravörös távirányítóval. VRV inverteres oldalfali beltéri egység telepítve, bekötve\nkompletten csövezés nélkül\nTOSHIBA MMK-UP0121HP-E",2,"db",0,0,{"$f":"D3*F3","v":0},{"$f":"D3*G3","v":0}]
[3,"k tétel","Toshiba VRF oldalfali, beltéri egység infravörös távirányítóval. VRV inverteres oldalfali beltéri egység telepítve, bekötve\nkompletten csövezés nélkül\nTOSHIBA MMK-UP0151HP-E",4,"db",0,0,0,0]
[null,"k tétel","Toshiba VRF oldalfali, beltéri egység infravörös távirányítóval. VRV inverteres oldalfali beltéri egység telepítve, bekötve\nkompletten csövezés nélkül\nTOSHIBA MMK-UP0181HP-E",1,"db",0,0,0,0]
[4,"k tétel","Toshiba standard, vezetékes, fali távvezérlő beépített hőmérsékletérzékelővel, maximum 8 db beltéri üzemeltetésére. Fali vezetékes szabályozó.\nTOSHIBA RBC-AMTU31-E",4,"db",0,0,0,0]
[5,"k tétel","Toshiba VRF, Y elágazó 18 kW alatti teljesítményhez. Változó tömegáramú, inverteres multi split klímák tartozékainak\nelhelyezése, bekötése, TOSHIBA VRF \"Y\" idom változó\nhűtőközeg tömegáramú klíma osztóelem RBM-BY55E",3,"db",0,0,0,0]
[6,"k tétel","Toshiba VRF, Y elágazó 18-56 kW közötti\nteljesítményhez. Változó tömegáramú, inverteres multi split klímák tartozékainak\nelhelyezése, bekötése, TOSHIBA VRF \"Y\" idom változó\nhűtőközeg tömegáramú klíma osztóelem RBM-BY105E",3,"db",0,0,0,0]
[7,"k tétel","VRF rendszerek beüzemelése, rendszerenként,",1,"rdsz",0,0,0,0]
[8,"k tétel","Lágy, vegytiszta vörösréz cső, klíma és hűtéstechnikai szereléshez, tartószerkezettel, felszerelve kompletten. Ø6 mm",23,"fm",0,0,0,0]
[9,"k tétel","Ø10 mm",33,"fm",0,0,0,0]
[10,"k tétel","Ø12 mm",19,"fm",0,0,0,0]
[11,"k tétel","Ø16 mm",14,"fm",0,0,0,0]
[12,"k tétel","Ø22 mm",16,"fm",0,0,0,0]
[13,"k tétel","Klímavezetékek szigetelése 13 mm vastag Armaflex ACE+szigetelőanyaggal\nØ6 mm csővezetékre",23,"fm",0,0,0,0]
[14,"k tétel","Ø10 mm csővezetékre",33,"fm",0,0,0,0]
[15,"k tétel","Ø12 mm csővezetékre",19,"fm",0,0,0,0]
[16,"k tétel","Ø16 mm csővezetékre",14,"fm",0,0,0,0]
[17,"k tétel","Ø22 mm csővezetékre",16,"fm",0,0,0,0]
[18,"k tétel","Falon kívüli kábelcsatorna fehér színben klíma cseppvíz vezeték\nrészére, felszerelve, kompletten.25x25 mm",40,"fm",0,0,0,0]
[19,"k tétel","Rátöltendő R410A hűtőközeg.",10,"kg",0,0,0,0]
[20,"k tétel","PipeLife PVC-U ragasztótokos nyomócső, idomokkal,\nfelszerelve kompletten.\nØ20",40,"fm",0,0,0,0]
[21,"k tétel","Kültéri tartó szerkezet",1,"db",0,0,0,0]
[22,"k tétel","Szivárgásvizsgálati terv készítése kültéri és beltéri egységek vizsgálatával, hűtőkörönként, rögzítése hatósági rendszerben.",1,"rdsz.",0,0,0,0]
[23,"k tétel","Falon kívüli kábelcsatorna fehér színben klíma lágy rézcső részére részére, felszerelve, kompletten.",14,"db",0,0,0,0]
[24,"k tétel","Faláttöréskészítése vezetékek részére",8,"db",0,0,0,0]
[25,"k tétel","Csövek elburkolása gipszkartonnal",18,"mm2",0,0,0,0]
[26,"k tétel","Átadási terv dokumentációk készítése, mely tartalmazza a megvalósulási terveket, beszabályozási és egyéb jegyzőkönyveket beépített berendezések jótállási és kezelési és karbantartási dokumentomokat (a megvalósulási dokumentáció készítése a kivitelező feladta).",1,"db",0,0,0,0]
[27,"k tétel","Nitrogén nyomáspróba elvégzése/szükésg esetén jegyzőkönyv készítése/",1,"db",0,0,0,0]
[28,"k tétel","Csőbilincs csővezetékhez",130,"db",0,0,0,0]
[29,"k tétel","Kommunikációs kábel elhelyezése",195,"fm",0,0,0,0]
[30,"k tétel","Segédanyagok",1,"db",0,0,0,0]
[null,null,"Munkanem összesen (HUF)",{"$nulls":4},{"$f":"ROUND(SUM(H2:H32),0)","v":0},{"$f":"ROUND(SUM(I2:I32),0)","v":0}]